fUSD/lending_fUSD_20250728
["ID","MTS","AMOUNT","RATE_DAILY","PERIOD"]
[375491976,1753661073285,150.0,0.00025688,120]
[375491977,1753661132137,150.0,0.00027322,120]
[375491979,1753661230332,155.19,0.00013699,2]
[375492000,1753661271622,428.46173824,0.0002732,120]
[375492003,1753661382019,394.27,0.00025118,120]
[375492008,1753661432066,-527.0,0.00018447,2]
[375492009,1753661432077,-300.0,0.00019176,2]
[375492010,1753661432087,-1182.0,0.00019176,2]
[375492011,1753661432096,-151.78,0.00019177,2]
[375492012,1753661432106,-500.0,0.00019177,2]
[375492013,1753661432116,-500.0,0.00019177,2]
[375492014,1753661432126,-226.44649303,0.00019177,2]
[375492015,1753661432138,-273.55350697,0.00019177,2]
[375492016,1753661432148,-500.0,0.00019177,2]
[375492017,1753661432157,-500.0,0.00019177,2]
[375492018,1753661432167,-500.0,0.00019177,2]
[375492019,1753661432177,-500.0,0.00019177,2]
[375492020,1753661432187,-500.0,0.00019177,2]
[375492021,1753661432197,-638.04649303,0.00019178,2]
[375492022,1753661432209,-112.45350697,0.00019178,2]
[375492023,1753661432219,-302.49,0.00019178,2]
[375492024,1753661432228,-304.94,0.00019178,2]
[375492025,1753661432238,-300.46,0.00019178,2]
[375492026,1753661432247,-304.07,0.00019178,2]
[375492027,1753661432257,-305.02,0.00019178,2]
[375492028,1753661432266,-300.78,0.00019178,2]
[375492029,1753661432276,-305.09,0.00019178,2]
[375492030,1753661432286,-118.09649303,0.00019178,2]
[375492031,1753661432302,-185.66350697,0.00019178,2]
[375492032,1753661432313,-304.25,0.00019178,2]
[375492033,1753661432322,-691.98649293,0.000198,2]
[375492034,1753661432482,-308.01350707,0.000198,2]
[375492035,1753661432492,-1000.0,0.000198,3]
[375492036,1753661432502,-150.0,0.00019948,4]
[375492037,1753661432512,-150.0,0.00019948,4]
[375492038,1753661432522,-150.0,0.00019948,4]
[375492039,1753661432533,-150.0,0.00019948,4]
[375492040,1753661432546,-150.0,0.00019948,4]
[375492041,1753661432556,-150.0,0.00019948,4]
[375492043,1753661432565,-150.0,0.00019948,4]
[375492045,1753661432575,-150.0,0.00019948,4]
[375492047,1753661432585,-150.0,0.00019948,4]
[375492049,1753661432595,-150.0,0.00019948,4]
[375492051,1753661432605,-150.0,0.0002004,4]
[375492053,1753661432616,-150.0,0.00020071,4]
[375492055,1753661432627,-394.27,0.00020094,2]
[375492057,1753661432637,-150.0,0.00020133,4]
[375492060,1753661432646,-150.0,0.00020194,4]
[375492062,1753661432655,-150.0,0.00020225,4]
[375492063,1753661432665,-150.0,0.00020317,4]
[375492065,1753661432675,-150.0,0.00020317,4]
[375492067,1753661432684,-150.0,0.00020317,4]
[375492069,1753661432694,-600.71649293,0.00020369,2]
[375492194,1753661438272,-209.79791275,0.000199,2]
[375492195,1753661438282,-209.7979127,0.000201,2]
[375492196,1753661438292,-588.0,0.000203,7]
[375492197,1753661438303,-209.7979127,0.000203,3]
[375492198,1753661438313,-15.70350707,0.00020369,2]
[375492199,1753661438323,-150.0,0.00020391,4]
[375492200,1753661438333,-9409.4,0.00020402,2]
[375492201,1753661438343,-150.0,0.0002041,4]
[375492202,1753661438353,-150.0,0.0002044,4]
[375492203,1753661438364,-304.5,0.00020447,2]
[375492204,1753661438373,-209.7979127,0.000205,3]
[375492205,1753661438383,-150.0,0.00020502,4]
[375492206,1753661438392,-220.71,0.00020522,2]
[375492207,1753661438402,-150.0,0.00020564,4]
[375492208,1753661438412,-150.0,0.00020594,4]
[375492209,1753661438422,-500.0,0.00020685,2]
[375492210,1753661438432,-150.0,0.00020687,4]
[375492211,1753661438441,-150.0,0.00020687,4]
[375492212,1753661438452,-150.0,0.00020687,4]
[375492213,1753661438461,-150.0,0.00020687,4]
[375492214,1753661438471,-150.0,0.00020687,4]
[375492215,1753661438480,-209.7979127,0.000207,3]
[375492216,1753661438491,-180.0,0.00020702,7]
[375492217,1753661438501,-750.5,0.00020708,2]
[375492218,1753661438511,-174.31,0.00020763,2]
[375492219,1753661438521,-150.0,0.00020779,4]
[375492220,1753661438532,-1000.0,0.000208,4]
[375492222,1753661438543,-1000.0,0.000208,5]
[375492223,1753661438554,-1000.0,0.000208,6]
[375492224,1753661438564,-150.0,0.0002081,4]
[375492225,1753661438575,-150.0,0.00020835,4]
[375492226,1753661438585,-150.0,0.00020871,4]
[375492227,1753661438595,-301.05,0.00020895,2]
[375492228,1753661438605,-300.93,0.00020895,2]
[375492230,1753661438615,-300.48,0.00020895,2]
[375492232,1753661438629,-304.09,0.00020895,2]
[375492234,1753661438640,-304.57,0.00020895,2]
[375492236,1753661438650,-1235.96,0.00020895,2]
[375492238,1753661438660,-420.0,0.00020898,2]
[375492240,1753661438671,-209.7979127,0.000209,4]
[375492242,1753661438681,-1766.29,0.00020907,2]
[375492244,1753661438691,-304.78,0.00020907,2]
[375492246,1753661438700,-270.8,0.00020909,2]
[375492248,1753661438710,-303.12,0.00020918,2]
[375492250,1753661438721,-1000.0,0.00020918,2]
[375492252,1753661438731,-150.0,0.00020933,4]
[375492254,1753661438740,-150.0,0.00020964,4]
[375492256,1753661438752,-3000.0,0.00021,2]
[375492258,1753661438769,-151.0,0.00021036,2]
[375492260,1753661438779,-9216.856,0.00021048,2]
[375492262,1753661438789,-231.28369723,0.00021048,2]
[375492264,1753661438800,-600.0,0.00021048,2]
[375492267,1753661438810,-150.0,0.00021056,4]
[375492269,1753661438821,-150.0,0.00021056,4]
[375492271,1753661438832,-150.0,0.00021056,4]
[375492273,1753661438842,-150.0,0.00021056,4]
[375492275,1753661438852,-1072.54,0.00021072,2]
[375492277,1753661438862,-300.27,0.00021072,2]
[375492279,1753661438871,-305.4,0.00021072,2]
[375492280,1753661438881,-301.22,0.00021072,2]
[375492282,1753661438891,-302.39,0.00021072,2]
[375492284,1753661438900,-303.71,0.00021072,2]
[375492286,1753661438910,-305.5,0.00021072,2]
[375492289,1753661438920,-303.8,0.00021072,2]
[375492291,1753661438929,-155.88,0.00021084,2]
[375492293,1753661438939,-2351.88,0.000211,2]
[375492295,1753661438950,-358.5,0.000211,2]
[375492297,1753661438960,-209.7979127,0.000211,4]
[375492299,1753661438969,-150.0,0.00021149,4]
[375492301,1753661438979,-150.0,0.00021179,4]
[375492303,1753661438989,-150.0,0.00021241,4]
[375492305,1753661438998,-150.0,0.00021278,4]
[375492307,1753661439008,-327.27,0.00021278,2]
[375492309,1753661439018,-209.7979127,0.000213,5]
[375492311,1753661439027,-150.0,0.00021302,4]
[375492313,1753661439038,-500.0,0.00021317,2]
[375492315,1753661439048,-150.0,0.00021333,4]
[375492317,1753661439057,-150.0,0.00021426,4]
[375492319,1753661439067,-150.0,0.00021426,4]
[375492321,1753661439080,-150.0,0.00021426,4]
[375492323,1753661439090,-150.0,0.00021426,4]
[375492326,1753661439100,-150.0,0.00021426,4]
[375492328,1753661439110,-209.7979127,0.000215,5]
[375492330,1753661439120,-150.0,0.00021518,4]
[375492332,1753661439131,-150.0,0.00021549,4]
[375492334,1753661439141,-21390.0,0.00021567,2]
[375492336,1753661439155,-4131.0,0.00021567,2]
[375492338,1753661439164,-233.629,0.00021567,2]
[375492340,1753661439174,-9557.879672,0.00021596,2]
[375492342,1753661439184,-600.0,0.00021596,2]
[375492344,1753661439193,-150.0,0.0002161,4]
[375492346,1753661439203,-301.37,0.00021627,2]
[375492348,1753661439213,-302.56,0.00021627,2]
[375492350,1753661439226,-500.0,0.00021671,2]
[375492352,1753661439241,-150.0,0.00021672,4]
[375492354,1753661439251,-399.50156,0.000217,2]
[375492357,1753661439261,-209.7979127,0.000217,5]
[375492359,1753661439271,-150.0,0.00021703,4]
[375492361,1753661439281,-150.0,0.00021721,4]
[375492363,1753661439291,-461.63959337,0.00021795,2]
[375492365,1753661439301,-36670.94191998,0.00021795,2]
[375492367,1753661439311,-150.0,0.00021795,4]
[375492369,1753661439321,-150.0,0.00021795,4]
[375492371,1753661439331,-150.0,0.00021795,4]
[375492373,1753661439341,-1099.6,0.000218,7]
[375492375,1753661439351,-151.92171017,0.00021811,2]
[375492377,1753661439361,-941.9911,0.00021817,2]
[375492379,1753661439374,-2282.7223,0.00021817,2]
[375492381,1753661439384,-174.20247828,0.00021817,2]
[375492383,1753661439394,-887.07274497,0.00021817,2]
[375492385,1753661439404,-1191.93721386,0.00021817,2]
[375492387,1753661439414,-516.05630198,0.00021817,2]
[375492389,1753661439424,-516.0563019,0.00021831,2]
[375492391,1753661439434,-516.0563019,0.00021846,2]
[375492393,1753661439443,-887.07274488,0.00021847,2]
[375492395,1753661439454,-1191.93721385,0.00021847,2]
[375492397,1753661439464,-516.0563019,0.0002186,2]
[375492399,1753661439473,-516.0563019,0.00021875,2]
[375492401,1753661439484,-887.07274488,0.00021878,2]
[375492404,1753661439494,-1191.93721385,0.00021878,2]
[375492406,1753661439504,-150.0,0.00021887,4]
[375492408,1753661439514,-516.0563019,0.00021889,2]
[375492410,1753661439531,-3099.49,0.000219,2]
[375492412,1753661439548,-209.7979127,0.000219,6]
[375492414,1753661439558,-285.02,0.00021907,2]
[375492416,1753661439569,-887.07274488,0.00021908,2]
[375492418,1753661439581,-1191.93721385,0.00021908,2]
[375492420,1753661439591,-464.16419989,0.00021916,2]
[375492422,1753661439601,-500.0,0.00021916,2]
[375492424,1753661439612,-500.0,0.00021916,2]
[375492426,1753661439624,-174.96178206,0.00021916,2]
[375492428,1753661439634,-281.77695695,0.00021916,2]
[375492430,1753661439644,-477.53629457,0.00021916,2]
[375492432,1753661439654,-300.0,0.00021916,2]
[375492434,1753661439664,-500.0,0.00021916,2]
[375492437,1753661439675,-500.0,0.00021916,2]
[375492438,1753661439685,-8081.18851882,0.00021916,2]
[375492439,1753661439695,-228.39238093,0.00021916,2]
[375492440,1753661439706,-202.51099644,0.00021916,2]
[375492441,1753661439716,-150.0,0.00021916,2]
[375492442,1753661439726,-155.0,0.00021916,2]
[375492443,1753661439736,-300.0,0.00021916,2]
[375492444,1753661439746,-450.0,0.00021916,2]
[375492445,1753661439756,-175.73700497,0.00021916,2]
[375492446,1753661439766,-156.02555846,0.00021916,2]
[375492447,1753661439776,-233.36605115,0.00021916,2]
[375492448,1753661439786,-336.65529573,0.00021916,2]
[375492449,1753661439797,-155.0,0.00021916,2]
[375492450,1753661439807,-400.0,0.00021917,2]
[375492451,1753661439823,-164.79631389,0.00021917,2]
[375492452,1753661439833,-487.58,0.00021917,2]
[375492453,1753661439843,-400.0,0.00021917,2]
[375492454,1753661439852,-400.0,0.00021917,2]
[375492456,1753661439863,-400.0,0.00021917,2]
[375492458,1753661439873,-400.0,0.00021917,2]
[375492460,1753661439883,-500.0,0.00021917,2]
[375492462,1753661439892,-500.0,0.00021917,2]
[375492464,1753661439902,-500.0,0.00021917,2]
[375492466,1753661439912,-400.0,0.00021917,2]
[375492468,1753661439922,-400.0,0.00021917,2]
[375492470,1753661439931,-400.0,0.00021917,2]
[375492472,1753661439941,-400.0,0.00021917,2]
[375492474,1753661439951,-400.0,0.00021917,2]
[375492476,1753661439961,-400.0,0.00021917,2]
[375492478,1753661439971,-400.0,0.00021917,2]
[375492480,1753661439980,-400.0,0.00021917,2]
[375492482,1753661439990,-400.0,0.00021917,2]
[375492484,1753661440000,-892.85621551,0.00021917,2]
[375492486,1753661440010,-400.0,0.00021917,2]
[375492488,1753661440020,-400.0,0.00021917,2]
[375492490,1753661440030,-400.0,0.00021917,2]
[375492493,1753661440040,-400.0,0.00021917,2]
[375492495,1753661440051,-400.0,0.00021917,2]
[375492497,1753661440061,-337.33622626,0.00021917,2]
[375492499,1753661440071,-400.0,0.00021917,2]
[375492501,1753661440080,-513.07554532,0.00021917,2]
[375492503,1753661440090,-526.77965961,0.00021917,2]
[375492505,1753661440100,-400.0,0.00021917,2]
[375492507,1753661440110,-156.65742588,0.00021917,2]
[375492509,1753661440120,-400.0,0.00021917,2]
[375492511,1753661440129,-400.0,0.00021917,2]
[375492513,1753661440139,-472.46499274,0.00021917,2]
[375492515,1753661440149,-400.0,0.00021917,2]
[375492517,1753661440159,-400.0,0.00021917,2]
[375492519,1753661440168,-369.24585221,0.00021917,2]
[375492521,1753661440178,-480.0,0.00021917,2]
[375492523,1753661440188,-400.0,0.00021917,2]
[375492525,1753661440197,-400.0,0.00021917,2]
[375492527,1753661440210,-400.0,0.00021917,2]
[375492529,1753661440220,-400.0,0.00021917,2]
[375492531,1753661440230,-400.0,0.00021917,2]
[375492534,1753661440247,-400.0,0.00021917,2]
[375492536,1753661440259,-400.0,0.00021917,2]
[375492539,1753661440270,-400.0,0.00021917,2]
[375492541,1753661440280,-400.0,0.00021917,2]
[375492543,1753661440290,-300.0,0.00021917,2]
[375492545,1753661440301,-400.0,0.00021917,2]
[375492547,1753661440311,-536.01,0.00021917,2]
[375492549,1753661440321,-400.0,0.00021917,2]
[375492551,1753661440331,-400.0,0.00021917,2]
[375492553,1753661440340,-400.0,0.00021917,2]
[375492555,1753661440350,-400.0,0.00021917,2]
[375492557,1753661440360,-400.0,0.00021917,2]
[375492559,1753661440370,-400.0,0.00021917,2]
[375492561,1753661440380,-400.0,0.00021917,2]
[375492563,1753661440389,-400.0,0.00021917,2]
[375492565,1753661440400,-400.0,0.00021917,2]
[375492567,1753661440410,-400.0,0.00021917,2]
[375492569,1753661440420,-512.22496863,0.00021917,2]
[375492571,1753661440429,-400.0,0.00021917,2]
[375492573,1753661440439,-867.79,0.00021917,2]
[375492575,1753661440449,-400.0,0.00021917,2]
[375492577,1753661440460,-400.0,0.00021917,2]
[375492579,1753661440470,-226.33300223,0.00021917,2]
[375492581,1753661440480,-157.369181,0.00021917,2]
[375492584,1753661440490,-400.0,0.00021917,2]
[375492586,1753661440499,-164.531709,0.00021917,2]
[375492588,1753661440509,-168.591021,0.00021917,2]
[375492590,1753661440519,-420.0,0.00021917,2]
[375492592,1753661440533,-400.0,0.00021917,2]
[375492594,1753661440543,-400.0,0.00021917,2]
[375492596,1753661440554,-400.0,0.00021917,2]
[375492598,1753661440564,-489.5,0.00021917,2]
[375492600,1753661440575,-400.0,0.00021917,2]
[375492602,1753661440585,-400.0,0.00021917,2]
[375492604,1753661440595,-489.33,0.00021917,2]
[375492606,1753661440606,-400.0,0.00021917,2]
[375492608,1753661440615,-400.0,0.00021917,2]
[375492610,1753661440625,-400.0,0.00021917,2]
[375492612,1753661440634,-400.0,0.00021917,2]
[375492614,1753661440644,-214.76048315,0.00021917,2]
[375492617,1753661440654,-400.0,0.00021917,2]
[375492619,1753661440663,-400.0,0.00021917,2]
[375492621,1753661440673,-501.88,0.00021917,2]
[375492623,1753661440683,-400.0,0.00021917,2]
[375492625,1753661440692,-160.855233,0.00021917,2]
[375492627,1753661440703,-400.0,0.00021917,2]
[375492629,1753661440713,-167.964356,0.00021917,2]
[375492631,1753661440725,-400.0,0.00021917,2]
[375492633,1753661440734,-157.313279,0.00021917,2]
[375492635,1753661440744,-400.0,0.00021917,2]
[375492637,1753661440754,-400.0,0.00021917,2]
[375492639,1753661440764,-991.38,0.00021917,2]
[375492641,1753661440774,-155.831067,0.00021917,2]
[375492643,1753661440783,-400.0,0.00021917,2]
[375492645,1753661440793,-400.0,0.00021917,2]
[375492648,1753661440804,-400.0,0.00021917,2]
[375492650,1753661440817,-639.2,0.00021917,2]
[375492652,1753661440827,-430.83,0.00021917,2]
[375492654,1753661440836,-400.0,0.00021917,2]
[375492656,1753661440846,-400.0,0.00021917,2]
[375492658,1753661440856,-400.0,0.00021917,2]
[375492660,1753661440866,-920.66,0.00021917,2]
[375492662,1753661440876,-746.65,0.00021917,2]
[375492664,1753661440885,-400.0,0.00021917,2]
[375492666,1753661440896,-400.0,0.00021917,2]
[375492668,1753661440906,-487.01,0.00021917,2]
[375492671,1753661440916,-400.0,0.00021917,2]
[375492673,1753661440926,-400.0,0.00021917,2]
[375492675,1753661440935,-400.0,0.00021917,2]
[375492677,1753661440945,-400.0,0.00021917,2]
[375492679,1753661440956,-400.0,0.00021917,2]
[375492681,1753661440966,-400.0,0.00021917,2]
[375492683,1753661440976,-400.0,0.00021917,2]
[375492685,1753661440986,-650.42,0.00021917,2]
[375492687,1753661440996,-311.4838509,0.00021917,2]
[375492689,1753661441007,-537.69,0.00021917,2]
[375492691,1753661441016,-400.0,0.00021917,2]
[375492693,1753661441026,-400.0,0.00021917,2]
[375492695,1753661441036,-446.1236431,0.00021917,2]
[375492697,1753661441047,-438.92,0.00021917,2]
[375492699,1753661441058,-529.12,0.00021917,2]
[375492701,1753661441068,-273.83403835,0.00021917,2]
[375492703,1753661441078,-400.0,0.00021917,2]
[375492705,1753661441088,-400.0,0.00021917,2]
[375492708,1753661441102,-1123.55,0.00021917,2]
[375492710,1753661441111,-400.0,0.00021917,2]
[375492712,1753661441121,-400.0,0.00021917,2]
[375492714,1753661441131,-400.0,0.00021917,2]
[375492716,1753661441141,-400.0,0.00021917,2]
[375492718,1753661441152,-1036.28,0.00021917,2]
[375492720,1753661441161,-400.0,0.00021917,2]
[375492722,1753661441171,-400.0,0.00021917,2]
[375492724,1753661441180,-400.0,0.00021917,2]
[375492726,1753661441190,-1437.01,0.00021917,2]
[375492728,1753661441200,-400.0,0.00021917,2]
[375492730,1753661441210,-400.0,0.00021917,2]
[375492732,1753661441220,-400.0,0.00021917,2]
[375492734,1753661441229,-400.0,0.00021917,2]
[375492736,1753661441239,-400.0,0.00021917,2]
[375492738,1753661441249,-400.0,0.00021917,2]
[375492740,1753661441259,-400.0,0.00021917,2]
[375492742,1753661441269,-400.0,0.00021917,2]
[375492744,1753661441278,-400.0,0.00021917,2]
[375492746,1753661441288,-400.0,0.00021917,2]
[375492748,1753661441298,-400.0,0.00021917,2]
[375492750,1753661441308,-400.0,0.00021917,2]
[375492752,1753661441318,-400.0,0.00021917,2]
[375492754,1753661441328,-400.0,0.00021917,2]
[375492757,1753661441338,-400.0,0.00021917,2]
[375492759,1753661441348,-400.0,0.00021917,2]
[375492761,1753661441358,-400.0,0.00021917,2]
[375492763,1753661441368,-400.0,0.00021917,2]
[375492765,1753661441379,-400.0,0.00021917,2]
[375492767,1753661441389,-656.03,0.00021917,2]
[375492769,1753661441399,-400.0,0.00021917,2]
[375492771,1753661441408,-512.73,0.00021917,2]
[375492773,1753661441418,-400.0,0.00021917,2]
[375492775,1753661441428,-400.0,0.00021917,2]
[375492777,1753661441438,-424.17,0.00021917,2]
[375492779,1753661441447,-400.0,0.00021917,2]
[375492781,1753661441457,-400.0,0.00021917,2]
[375492783,1753661441467,-400.0,0.00021917,2]
[375492785,1753661441477,-263.03297397,0.00021917,2]
[375492787,1753661441486,-400.0,0.00021917,2]
[375492789,1753661441496,-400.0,0.00021917,2]
[375492791,1753661441506,-400.0,0.00021917,2]
[375492794,1753661441515,-400.0,0.00021917,2]
[375492796,1753661441526,-500.0,0.00021917,2]
[375492798,1753661441541,-500.0,0.00021917,2]
[375492800,1753661441551,-500.0,0.00021917,2]
[375492802,1753661441562,-400.0,0.00021917,2]
[375492804,1753661441574,-400.0,0.00021917,2]
[375492806,1753661441584,-500.0,0.00021917,2]
[375492808,1753661441595,-500.0,0.00021917,2]
[375492811,1753661441606,-518.06563111,0.00021917,2]
[375492813,1753661441618,-400.0,0.00021917,2]
[375492815,1753661441629,-473.99,0.00021917,2]
[375492817,1753661441640,-400.0,0.00021917,2]
[375492819,1753661441650,-400.0,0.00021917,2]
[375492821,1753661441662,-400.0,0.00021917,2]
[375492823,1753661441673,-400.0,0.00021917,2]
[375492826,1753661441684,-400.0,0.00021917,2]
[375492828,1753661441695,-400.0,0.00021917,2]
[375492830,1753661441706,-400.0,0.00021917,2]
[375492832,1753661441717,-558.35,0.00021917,2]
[375492834,1753661441728,-400.0,0.00021917,2]
[375492836,1753661441739,-400.0,0.00021917,2]
[375492839,1753661441751,-400.0,0.00021917,2]
[375492841,1753661441761,-400.0,0.00021917,2]
[375492843,1753661441772,-400.0,0.00021917,2]
[375492845,1753661441783,-495.58779164,0.00021917,2]
[375492847,1753661441794,-400.0,0.00021917,2]
[375492850,1753661441808,-480.85471774,0.00021917,2]
[375492852,1753661441820,-553.85,0.00021917,2]
[375492854,1753661441831,-1167.36,0.00021917,2]
[375492856,1753661441842,-400.0,0.00021917,2]
[375492858,1753661441853,-1354.62,0.00021917,2]
[375492860,1753661441864,-400.0,0.00021917,2]
[375492863,1753661441875,-400.0,0.00021917,2]
[375492865,1753661441887,-591.81,0.00021917,2]
[375492867,1753661441898,-400.0,0.00021917,2]
[375492869,1753661441909,-300.0,0.00021917,2]
[375492871,1753661441920,-1217.44,0.00021917,2]
[375492874,1753661441939,-400.0,0.00021917,2]
[375492876,1753661441951,-400.0,0.00021917,2]
[375492878,1753661441963,-400.0,0.00021917,2]
[375492881,1753661441973,-400.0,0.00021917,2]
[375492883,1753661441985,-517.25,0.00021917,2]
[375492885,1753661441996,-168.57441755,0.00021917,2]
[375492887,1753661442007,-616.91,0.00021917,2]
[375492889,1753661442018,-835.76,0.00021917,2]
[375492892,1753661442030,-400.0,0.00021917,2]
[375492894,1753661442041,-400.0,0.00021917,2]
[375492896,1753661442055,-400.0,0.00021917,2]
[375492898,1753661442067,-460.0,0.00021917,2]
[375492900,1753661442078,-400.0,0.00021917,2]
[375492902,1753661442089,-400.0,0.00021917,2]
[375492905,1753661442100,-400.0,0.00021917,2]
[375492907,1753661442111,-400.0,0.00021917,2]
[375492909,1753661442122,-400.0,0.00021917,2]
[375492911,1753661442134,-400.0,0.00021917,2]
[375492913,1753661442145,-400.0,0.00021917,2]
[375492915,1753661442156,-400.0,0.00021917,2]
[375492918,1753661442167,-838.57,0.00021917,2]
[375492920,1753661442178,-583.16,0.00021917,2]
[375492922,1753661442189,-500.0,0.00021917,2]
[375492924,1753661442200,-307.13060365,0.00021917,2]
[375492926,1753661442211,-500.0,0.00021917,2]
[375492928,1753661442222,-400.0,0.00021917,2]
[375492931,1753661442234,-500.0,0.00021917,2]
[375492933,1753661442246,-500.0,0.00021917,2]
[375492935,1753661442257,-400.0,0.00021917,2]
[375492937,1753661442268,-500.0,0.00021917,2]
[375492939,1753661442279,-400.0,0.00021917,2]
[375492942,1753661442289,-284.58911636,0.00021917,2]
[375492944,1753661442300,-500.0,0.00021917,2]
[375492946,1753661442312,-500.0,0.00021917,2]
[375492948,1753661442324,-500.0,0.00021917,2]
[375492950,1753661442335,-400.0,0.00021917,2]
[375492952,1753661442346,-400.0,0.00021917,2]
[375492955,1753661442356,-400.0,0.00021917,2]
[375492957,1753661442368,-400.0,0.00021917,2]
[375492959,1753661442379,-734.69,0.00021917,2]
[375492961,1753661442390,-400.0,0.00021917,2]
[375492963,1753661442401,-400.0,0.00021917,2]
[375492965,1753661442412,-400.0,0.00021917,2]
[375492967,1753661442423,-400.0,0.00021917,2]
[375492970,1753661442434,-400.0,0.00021917,2]
[375492972,1753661442444,-400.0,0.00021917,2]
[375492974,1753661442456,-400.0,0.00021917,2]
[375492977,1753661442473,-903.01,0.00021917,2]
[375492979,1753661442485,-460.0,0.00021917,2]
[375492981,1753661442497,-400.0,0.00021917,2]
[375492983,1753661442508,-400.0,0.00021917,2]
[375492985,1753661442520,-400.0,0.00021917,2]
[375492987,1753661442536,-839.31,0.00021917,2]
[375492989,1753661442549,-400.0,0.00021917,2]
[375492991,1753661442561,-461.64532377,0.00021917,2]
[375492994,1753661442574,-400.0,0.00021917,2]
[375492996,1753661442586,-400.0,0.00021917,2]
[375492998,1753661442598,-384.95606667,0.00021917,2]
[375493000,1753661442611,-400.0,0.00021917,2]
[375493002,1753661442623,-400.0,0.00021917,2]
[375493005,1753661442634,-583.39,0.00021917,2]
[375493007,1753661442645,-400.0,0.00021917,2]
[375493009,1753661442656,-400.0,0.00021917,2]
[375493011,1753661442668,-400.0,0.00021917,2]
[375493013,1753661442679,-400.0,0.00021917,2]
[375493016,1753661442690,-400.0,0.00021917,2]
[375493018,1753661442702,-400.0,0.00021917,2]
[375493020,1753661442713,-669.12,0.00021917,2]
[375493022,1753661442725,-400.0,0.00021917,2]
[375493024,1753661442736,-301.2655077,0.00021917,2]
[375493026,1753661442748,-400.0,0.00021917,2]
[375493029,1753661442759,-400.0,0.00021917,2]
[375493031,1753661442770,-400.0,0.00021917,2]
[375493033,1753661442782,-484.68,0.00021917,2]
[375493035,1753661442793,-500.0,0.00021917,2]
[375493037,1753661442805,-400.0,0.00021917,2]
[375493039,1753661442815,-400.0,0.00021917,2]
[375493042,1753661442827,-400.0,0.00021917,2]
[375493044,1753661442837,-400.0,0.00021917,2]
[375493046,1753661442848,-400.0,0.00021917,2]
[375493048,1753661442859,-425.9,0.00021917,2]
[375493050,1753661442870,-400.0,0.00021917,2]
[375493052,1753661442881,-400.0,0.00021917,2]
[375493054,1753661442892,-400.0,0.00021917,2]
[375493057,1753661442903,-400.0,0.00021917,2]
[375493059,1753661442915,-550.59,0.00021917,2]
[375493061,1753661442925,-400.0,0.00021917,2]
[375493063,1753661442936,-400.0,0.00021917,2]
[375493065,1753661442947,-1081.35,0.00021917,2]
[375493067,1753661442958,-400.0,0.00021917,2]
[375493070,1753661442968,-440.0,0.00021917,2]
[375493072,1753661442979,-400.0,0.00021917,2]
[375493075,1753661442990,-400.0,0.00021917,2]